Cogmind - Beta 15 @@@ ROGUE MODE // 2025.06.11 @ 06:37:05 Player: CL-1C0 Result: Self-destructed Performance ------------- Evolutions (2) 1000 Regions Visited (3) 600 Robots Destroyed (0) 0 Value Destroyed (0) 0 Prototype IDs (13) 260 Alien Tech Used (0) 0 Bonus (200) 200 TOTAL SCORE: 2060 Bonus ------- Pacifist 200 Cogmind --------- Core Integrity 519/550 Matter 180/300 Energy 90/100 System Corruption 0% Temperature Cool (0) Movement Core (50) Location -8/Materials Parts ------- > --- POWER (1) -------- (None) > --- PROPULSION (3) --- Improved Flight Unit Improved Flight Unit Improved Flight Unit > --- UTILITY (5) ------ (None) > --- WEAPON (2) ------- (None) > --- INVENTORY (5) ---- Structural Scanner Improved Sensor Array Improved Assault Rifle Grenade Launcher Subdweller Shrapnel Launcher Peak State ------------ > --- POWER ------------ (None) > --- PROPULSION ------- Arachnoskeleton Improved Flight Unit Improved Flight Unit Improved Flight Unit > --- UTILITY ---------- (None) > --- WEAPON ----------- Improved Assault Rifle > --- INVENTORY -------- Grenade Launcher Subdweller Shrapnel Launcher [Rating: 33] Favorites ----------- Power None Propulsion Light Treads Treads Light Treads Leg Arachnoskeleton Flight Unit Improved Flight Unit Utility None Weapon Improved Assault Rifle Ballistic Gun Improved Assault Rifle Launcher Grenade Launcher Build | -11 -10 -10 -8 ------- Run | Yrd Mat Sub Mat Slots Evolved 4 | . . . 4 Power . | . . . . Propulsion 1 | . . . 1 Utility 3 | . . . 3 Weapon . | . . . . Parts Attached 7 | 1 1 . 5 Power . | . . . . Engine . | . . . . Core . | . . . . Reactor . | . . . . Propulsion 5 | 1 . . 4 Treads 1 | 1 . . . Leg 1 | . . . 1 Wheel . | . . . . Hover . | . . . . Flight 3 | . . . 3 Utility . | . . . . Device . | . . . . Storage . | . . . . Processor . | . . . . Hackware . | . . . . Protection . | . . . . Artifact . | . . . . Weapon 2 | . 1 . 1 Energy Gun . | . . . . Energy Cannon . | . . . . Ballistic Gun 1 | . . . 1 Ballistic Cannon . | . . . . Launcher 1 | . 1 . . Special Weapon . | . . . . Impact Weapon . | . . . . Slashing Weapon . | . . . . Piercing Weapon . | . . . . Special Melee Weapon . | . . . . Unidentified Prototypes 2 | . . . 2 Parts Lost 1 | . . 1 . Power . | . . . . Propulsion 1 | . . 1 . Utility . | . . . . Weapon . | . . . . Highest Loss Streak 1 | . . 1 . To Critical Strikes . | . . . . Average Backups 2 | 4 . 2 3 Power . | 1 . . . Propulsion . | 2 . . . Utility . | . . . 1 Weapon 1 | 1 . 1 2 Tool/Special . | . . . . Unused Backups 3 | . . . 3 Power . | . . . . Propulsion . | . . . . Utility 2 | . . . 2 Weapon 1 | . . . 1 Tool/Special . | . . . . Average Slot Usage (%) 15 | . 14 13 24 Treads 10 | . 14 12 . Leg 1 | . . . 7 Flight 2 | . . . 14 Peak Build Rating 33 | 1 2 4 33 Average Rating 6 | 1 1 2 30 On Entrance 2 | 6 1 1 2 Naked Turns 30 | . . 30 . Heaviest Build 3 | . . . 3 Greatest Support 10 | 3 3 3 10 Greatest Overweight (x) . | . . . . Average Overweight (x) . | . . . . Largest Inventory Capacity 5 | 5 5 5 5 Average Capacity 5 | 5 5 5 5 Most Carried 5 | 4 1 5 5 Average Carried 3 | 2 . 3 3 Final Capacity 5 | 5 5 5 5 Final Carried 5 | . 1 5 5 Class Distribution -------------------- 100% | Mutant Dominant Class ---------------- Mutant | -10/Subcaves Mutant | -8/Materials Resources | -11 -10 -10 -8 ----------- Run | Yrd Mat Sub Mat Matter Collected 290 | 200 . 90 . Remotely . | . . . . Salvage Created . | . . . . Parts . | . . . . Haulers Intercepted . | . . . . Recyclers Shooed . | . . . . Parts Field Recycled . | . . . . Retrieved Matter . | . . . . Parts Self-Destructed . | . . . . Prevented . | . . . . Kills | -11 -10 -10 -8 ------- Run | Yrd Mat Sub Mat Combat Hostiles Destroyed . | . . . . Classes Destroyed . | . . . . Best Kill Streak . | . . . . Combat Bots Only . | . . . . Max Kills in Single Turn . | . . . . Gunslinging . | . . . . Exploded . | . . . . Melee . | . . . . Uniques/NPCs Destroyed . | . . . . Combat | -11 -10 -10 -8 -------- Run | Yrd Mat Sub Mat Hostile Shots Fired 41 | . . 24 17 Missed 16 | . . 7 9 Hits 25 | . . 17 8 Projectile 25 | . . 17 8 Critical Strikes 1 | . . 1 . Damage Taken 552 | . 27 394 131 Core 253 | . . 222 31 Absorbed by Shields . | . . . . Core Remaining (%) 55 | 100 . 11 . Volleys Fired 14 | . 1 8 5 Largest 1 | . 1 1 1 Hottest 30 | . 30 30 23 Shots Fired 14 | . 1 8 5 Gun 5 | . . . 5 Cannon . | . . . . Launcher 9 | . 1 8 . Special . | . . . . Kinetic 5 | . . . 5 Thermal . | . . . . Explosive 9 | . 1 8 . Electromagnetic . | . . . . Robot Hit Streak 3 | . . . 3 Robot Miss Streak 1 | . . . 1 Penetration Max . | . . . . Secondary Targets . | . . . . Shots Hit Robots 4 | . . . 4 Core Hits 1 | . . . 1 Critical Kills . | . . . . Critical Parts Destroyed . | . . . . Critical Strikes . | . . . . Melee Attacks . | . . . . Impact . | . . . . Slashing . | . . . . Piercing . | . . . . Sneak Attacks . | . . . . Combat Hostiles . | . . . . Follow-up Attacks . | . . . . Damage Inflicted 86 | . . 29 57 Guns 57 | . . . 57 Cannons . | . . . . Explosions 29 | . . 29 . Melee . | . . . . Ramming . | . . . . Kinetic 57 | . . . 57 Thermal . | . . . . Explosive 29 | . . 29 . Electromagnetic . | . . . . Impact . | . . . . Slashing . | . . . . Piercing . | . . . . Highest Corruption . | . . . . Average Corruption . | . . . . Corruption Purged . | . . . . Corruption Blocked . | . . . . Overload Shots . | . . . . Overflow Damage . | . . . . Projectiles . | . . . . Explosions . | . . . . Melee . | . . . . Knockbacks . | . . . . Impact . | . . . . Kinetic . | . . . . Secondary . | . . . . Self-Inflicted Damage 100 | . 27 73 . Shots 6 | . 1 5 . Rammed . | . . . . Targets Rammed . | . . . . Kicked . | . . . . Crushed . | . . . . Highest Temperature . | . . . . Average Temperature . | . . . . Received Heat Transfer 126 | . . 54 72 Siege Activations . | . . . . Martial Activations . | . . . . Shielding Activations . | . . . . Robots Disrupted . | . . . . Combat Hostiles . | . . . . Robots Corrupted . | . . . . Combat Hostiles . | . . . . Parts Fried . | . . . . Impact Corruptions . | . . . . Robots Melted . | . . . . Combat Hostiles . | . . . . Parts Melted . | . . . . Heat Transferred . | . . . . Parts Sabotaged . | . . . . Parts Stolen . | . . . . Parts Stripped . | . . . . Power Chain Reactions . | . . . . Alert | -11 -10 -10 -8 ------- Run | Yrd Mat Sub Mat Maximum Alert Level . | . . . . Low Security (%) 100 | 100 100 . 100 Level 1 . | . . . . Level 2 . | . . . . Level 3 . | . . . . Level 4 . | . . . . Level 5 . | . . . . High Security . | . . . . Max Security . | . . . . Peak Influence 15 | . 5 . 15 Initial . | . . . . Average 3 | . . . 5 Influence Increases 35 | . 5 15 15 Destroy Structure 5 | . 5 . . Partial Spotted 15 | . . . 15 Lose Combat Pursuer 15 | . . 15 . Influence Decreases 35 | . 5 15 15 Time Decay 35 | . 5 15 15 Squads Dispatched 1 | . . . 1 Investigation 1 | . . . 1 Extermination . | . . . . Reinforcement . | . . . . Assault . | . . . . Garrison . | . . . . Intercept . | . . . . Searches Triggered . | . . . . Construction Impeded . | . . . . Haulers Reinforced . | . . . . Active Scanning Responses . | . . . . Cargo Convoy Interrupts . | . . . . Stealth | -11 -10 -10 -8 --------- Run | Yrd Mat Sub Mat Distress Signals 1 | . . . 1 Communications Jammed . | . . . . Distress Signals . | . . . . Times Spotted 18 | . . 10 8 Peak Tracking Total 10 | . . 4 10 Tactical Retreats 5 | . . 5 . Traps | -11 -10 -10 -8 ------- Run | Yrd Mat Sub Mat Traps Triggered 1 | . . . 1 Indirectly . | . . . . Trap Hack Attempts . | . . . . Triggered . | . . . . Disarmed . | . . . . Reprogrammed . | . . . . Reused . | . . . . Traps Extracted . | . . . . Installed . | . . . . Triggered . | . . . . Machines | -11 -10 -10 -8 ---------- Run | Yrd Mat Sub Mat Machines Disabled 2 | . . 2 . Max in Single Turn 1 | . . 1 . Machines Repaired . | . . . . Machines Dismantled . | . . . . Machines Sabotaged . | . . . . Overloaded Fab Kills . | . . . . Hacking | -11 -10 -10 -8 --------- Run | Yrd Mat Sub Mat Machines Accessed 2 | . . 1 1 Terminals 1 | . . . 1 Fabricators . | . . . . Repair Stations . | . . . . Recycling Units . | . . . . Scanalyzers . | . . . . Garrison Access . | . . . . Total Hacks 7 | . . 1 6 Successful 1 | . . 1 . Failed 6 | . . . 6 Catastrophic . | . . . . Database Lockouts . | . . . . Manual 6 | . . . 6 Terminals 6 | . . . 6 Fabricators . | . . . . Repair Stations . | . . . . Recycling Units . | . . . . Scanalyzers . | . . . . Garrison Access . | . . . . Terminal Hacks 1 | . . 1 . Proto ID Catalog 1 | . . 1 . Fabricator Hacks . | . . . . Repair Station Hacks . | . . . . Recycling Unit Hacks . | . . . . Scanalyzer . | . . . . Garrison Access Hacks . | . . . . Unauthorized Hacks . | . . . . Terminals . | . . . . Fabricators . | . . . . Repair Stations . | . . . . Recycling Units . | . . . . Scanalyzers . | . . . . Garrison Access . | . . . . Data Cores Recovered . | . . . . Used . | . . . . Hacking Detections 1 | . . . 1 Full Trace Events 1 | . . . 1 Feedback Events . | . . . . Feedback Blocked . | . . . . Robot Schematics Acquired . | . . . . Robots Built . | . . . . Authchips . | . . . . Time . | . . . . Total Robot Build Rating . | . . . . Part Schematics Acquired . | . . . . Parts Built . | . . . . Authchips . | . . . . Time . | . . . . Total Part Build Rating . | . . . . Parts Repaired . | . . . . Time . | . . . . Parts Recycled . | . . . . Recycled Matter . | . . . . Retrieved Matter . | . . . . Retrieved Components . | . . . . Parts Scanalyzed . | . . . . Part Schematics Acquired . | . . . . Parts Damaged . | . . . . Bothacking | -11 -10 -10 -8 ------------ Run | Yrd Mat Sub Mat Used RIF Installer . | . . . . Robots Hacked . | . . . . Non-combat . | . . . . Combat . | . . . . Robot Hacks Applied . | . . . . Relay Couplers Released . | . . . . Fabnet Peak Effective % . | . . . . Robots Rewired . | . . . . Allies Hacked . | . . . . Hacks Repelled . | . . . . Allies | -11 -10 -10 -8 -------- Run | Yrd Mat Sub Mat Total Allies . | . . . . Largest Group . | . . . . Highest-Rated Group . | . . . . Highest-Rated Ally . | . . . . Total Orders . | . . . . Ally Attacks . | . . . . Total Damage . | . . . . Kills . | . . . . Allies Corrupted . | . . . . Allies Melted . | . . . . Intel | -11 -10 -10 -8 ------- Run | Yrd Mat Sub Mat Active Infowar (turns) . | . . . . Robot Analysis Total . | . . . . Derelict Logs Recovered . | . . . . Drone Launches . | . . . . Drone Recoveries . | . . . . Exploration | -11 -10 -10 -8 ------------- Run | Yrd Mat Sub Mat Turns Passed 388 | 4 22 300 62 Spaces Moved 670 | 1 35 552 82 Core 667 | 1 35 552 79 Treads . | . . . . Legs . | . . . . Wheels . | . . . . Hover . | . . . . Flight 3 | . . . 3 Fastest Speed 50 | 50 50 50 50 Average Speed 50 | 50 50 50 50 Slowest Speed 70 | 50 50 50 70 Overloaded Moves . | . . . . Propulsion Burnouts . | . . . . Robots Hopped . | . . . . Potential Cave-ins . | . . . . Cave-ins Triggered . | . . . . Exploration Rate (%) 21 | 2 9 58 15 Regions Visited 3 Branch Regions 1 Pre-discovered Areas . | . . . . Known Exits Taken . | . . . . Unknown Exits Taken 3 | 1 1 1 . Scrap Searched 8 | . . 8 . Spaces Dug 26 | . 5 21 . Terrain Destroyed 42 | . 5 37 . Melee . | . . . . Projectile . | . . . . AOE 42 | . 5 37 . Terrain Rammed . | . . . . Walls Destroyed . | . . . . Machines Disabled . | . . . . Actions | -11 -10 -10 -8 --------- Run | Yrd Mat Sub Mat Total 707 | 5 37 569 96 Wait . | . . . . Move 667 | . 34 551 82 Hop . | . . . . Pick Up 4 | . . 2 2 Fast Attach 5 | . 1 . 4 Attach 6 | 1 . 4 1 Detach 6 | . 1 4 1 Swap . | . . . . Drop 5 | 4 . . 1 Fire 14 | . 1 8 5 Melee . | . . . . Ram . | . . . . Kick . | . . . . Crush . | . . . . Escape Stasis . | . . . . Rewire . | . . . . Trap . | . . . . Miscellaneous . | . . . . Route ------- -11/Scrapyard -10/Materials -10/Subcaves (discovered 2 exits: *Mat x2) -8/Materials History --------- Turn | Location | Event 1 | -11/Scrapyard | Released all parts (6) 5 | -11/Scrapyard | Discovered new exit (range 0) 5 | -11/Scrapyard | Entered Materials 22 | -10/Materials | Discovered new exit (range 5) 27 | -10/Materials | Entered Subcaves 121 | -10/Subcaves | Visited 4L-MR0's lab 131 | -10/Subcaves | Found Arachnoskeleton 200 | -10/Subcaves | Disturbed a concealed Subdweller 217 | -10/Subcaves | Discovered new exit (range 16) 223 | -10/Subcaves | A swath of the cavern ceiling suddenly collapsed 231 | -10/Subcaves | Core integrity fell below 50% 307 | -10/Subcaves | Shifting Twisted Machinery released Sub. Optics 318 | -10/Subcaves | Build established: Mutant 323 | -10/Subcaves | Discovered new exit (range 9) 326 | -10/Subcaves | Core integrity fell below 20% 327 | -10/Subcaves | Entered Materials 327 | -8/Materials | Evolved 4 slots: Propulsion x1, Utility x3 328 | -8/Materials | Attached Arachnoskeleton, gained temporary slots: Propulsion x3 389 | -8/Materials | Self-destructed Last Messages --------------- 00335_ Acquired Prototype Flight Unit. 00335_ Identified Imp. Flight Unit. 00337_ Acquired Imp. Flight Unit. 00342_ Acquired Prototype Ballistic Gun. 00342_ Identified Imp. Assault Rifle. 00346_ Acquired Imp. Sensor Array. 00352_ Triggered Alarm Trap. 00352_ An alarm sounds. 00352_ ALERT: Alarm triggered, dispatching investigation squad. 00360_ Acquired Structural Scanner. 00367_ K-01 Serf cleans the Fusion Modulator. 00373_ C-30 ARC bursts open, deploying its payload. 00373_ B-36 Bruiser unfolds itself. 00373_ G-47 Trooper unfolds itself. 00376_ K-01 Serf collects debris. 00385_ O-16 Technician: "IFF HANDSHAKE FAILED. SECURING TERMINAL." 00388_ Connecting with Terminal... 00388_ Current location identified: Materials 00389_ Discarded Arachnoskeleton. 00389_ Temporary Propulsion slot lost. Map ----- +----------------------------------------------------+ | ??????????# !!! #?????# #??????? | | ??????????# !!! #?????# #??????? | | ??????????# !!! #?????# #??????? | | ??????????###########?????#########/#??????? | | ??????????????????????????????????# #??????? | | ????????????????##########????????# #??????? | | ????????????????# ########## #??????? | | ????????????????# "" ! " #??????? | | ????????????????# "T # #??????? | | ????????????????# "" # #??????? | | ????????????????# " | | ????????????????# """ ########## " | | ????????????????# """ #????????# %""" | | ????????????????# """ #????????# """" | | ????????????????# #????????#+## """? | | ????????????????#####+####???????????? | | ?????????#########?# #??????????????? | | ?????????# # #???????????????##### | | ?????????# # #???????????????????? | | ?????????# + #???????????????????? | | ?????????# # #???????????????????? | | ?????????########### g#???????????????????? | | ????????? * k ????## ##??????????????????? | | ??????????? ??# ########???????????? | | ?????????? """ # #???????? | | ?????????? """ /@ T a #???????? | | ??????????S """ # #???????? | | ???????????" ??# ###### ????????? | | ??????????"" ????#######??????? ????????? | | ????????? ???????????????????????????????? | | ????????##?????????????????????????????????? | | ???????????????????????????????????????????? | | ???????????????????????????????????????????? | | ???????????????????????????????????????????? | | ???????????????????????????????????????????? | | ???????????????????????????????????????????? | | ???????????????????????????????????????????? | | ???????????????????????????????????????????? | | ???????????????????????????????????????????? | | ???????????????????????????????????????????? | | ???????????????????????????????????????????? | | ???????????????????????????????????????????? | | ???????????????????????????????????????????? | | ???????????????????????????????????????????? | | ???????????????????????????????????????????? | | ???????????????????????????????????????????? | | ???????????????????????????????????????????? | | ???????????????????????????????????????????? | | ???????????????????????????????????????????? | | ???????????????????????????????????????????? | +----------------------------------------------------+ Best States ------------- Heat Dissipation 31 Energy Generation 5 Energy Capacity 100 Matter Stores 300 Matter Capacity 300 Sight Range 16 Terrain Scan Density 10 Evasion (%) 56 Item Schematics ----------------- None Robot Schematics ------------------ None Fabricated ------------ Nothing Repaired ---------- Nothing Alien Tech Used ----------------- None Achievements -------------- None Challenges ------------ None Game ------ Seed MetafieldDataExpander Manual? 0 Play Time 00:07:16 Cumulative 533.1 hours Start 2025.06.11 @ 06:31:18 End 2025.06.11 @ 06:37:05 Sessions 1 Manual Loads 0 Difficulty Rogue Special Mode None Game No. 630 Rogue 630 Adventurer 0 Explorer 0 Win Type - Total 19 Types 13/0/5/1/0/0/0/0/0/0 Lore% 83 Gallery% 82 Achievement% 82 Wizard Run 0 Options --------- Layout 0 ASCII 0 Keyboard 0 Movement Numpad Keybinds 0 Fullscreen 1 Font 18/SmallcapsGlow Map View 76x50 Zoom Use 0% Tactical HUD 1 Map Filters NONE Filters NONE Steam 1 RUN: a2fcb13c-67be-4f4a-b5db-fbe330b1a904